[Event "Vetern-SM 50+ 2025"]
[Site "Uppsala, Sweden"]
[Date "2025.07.05"]
[Round "8.3"]
[White "Ivarsson, Anders"]
[Black "Olsson, Pether"]
[Result "0-1"]
[TimeControl "90 min for 40 move + 30 min with an increment of 30 sec starting move 1"]
[WhiteFideId "1768158"]
[BlackFideId "1726820"]
[WhiteElo "1987"]
[BlackElo "2160"]

1. Nf3 {[%clk 01:30:59]} Nf6 {[%clk 01:30:50]} {[%emt 00:00:11]} 2. c4 {[%clk
01:31:25]} {[%emt 00:00:04]} b6 {[%clk 01:31:15]} {[%emt 00:00:05]} 3. d4
{[%clk 01:31:48]} {[%emt 00:00:06]} e6 {[%clk 01:31:30]} {[%emt 00:00:15]} 4.
Nc3 {[%clk 01:32:12]} {[%emt 00:00:06]} Bb4 {[%clk 01:29:57]} {[%emt 00:02:04]}
5. e3 {[%clk 01:32:13]} {[%emt 00:00:29]} Bb7 {[%clk 01:29:27]} {[%emt
00:00:59]} 6. Bd3 {[%clk 01:32:08]} {[%emt 00:00:35]} Ne4 {[%clk 01:27:44]}
{[%emt 00:02:12]} 7. Qc2 {[%clk 01:32:13]} {[%emt 00:00:26]} Bxc3+ {[%clk
01:25:46]} {[%emt 00:02:28]} 8. bxc3 {[%clk 01:32:38]} {[%emt 00:00:05]} f5
{[%clk 01:25:41]} {[%emt 00:00:35]} 9. O-O {[%clk 01:31:30]} {[%emt 00:01:38]}
O-O {[%clk 01:24:18]} {[%emt 00:01:52]} 10. Nd2 {[%clk 01:30:50]} {[%emt
00:01:11]} Nxd2 {[%clk 01:13:31]} {[%emt 00:11:17]} 11. Qxd2 {[%clk 01:30:48]}
{[%emt 00:00:33]} d6 {[%clk 01:13:10]} {[%emt 00:00:50]} 12. a4 {[%clk
01:17:55]} {[%emt 00:13:23]} a5 {[%clk 00:52:29]} {[%emt 00:21:11]} 13. f3
{[%clk 01:10:33]} {[%emt 00:07:52]} Nd7 {[%clk 00:51:33]} {[%emt 00:01:26]} 14.
Ba3 {[%clk 01:10:28]} {[%emt 00:00:36]} Qe7 {[%clk 00:46:33]} {[%emt 00:05:29]}
15. e4 {[%clk 01:07:42]} {[%emt 00:03:17]} fxe4 {[%clk 00:45:44]} {[%emt
00:01:19]} 16. fxe4 {[%clk 01:07:51]} {[%emt 00:00:20]} e5 {[%clk 00:45:44]}
{[%emt 00:00:30]} 17. Qe2 {[%clk 01:02:39]} {[%emt 00:05:42]} Rxf1+ {[%clk
00:34:18]} {[%emt 00:11:56]} 18. Rxf1 {[%clk 01:02:58]} {[%emt 00:00:10]} Rf8
{[%clk 00:34:02]} {[%emt 00:00:46]} 19. Rxf8+ {[%clk 00:45:14]} {[%emt
00:18:15]} Kxf8 {[%clk 00:33:26]} {[%emt 00:01:05]} 20. Qf3+ {[%clk 00:43:49]}
{[%emt 00:01:56]} Kg8 {[%clk 00:32:56]} {[%emt 00:01:00]} 21. Bc1 {[%clk
00:41:03]} {[%emt 00:03:16]} h6 {[%clk 00:29:27]} {[%emt 00:04:00]} 22. Qf5
{[%clk 00:30:32]} {[%emt 00:11:00]} Nf6 {[%clk 00:26:28]} {[%emt 00:03:28]} 23.
d5 {[%clk 00:28:45]} {[%emt 00:02:18]} Qf8 {[%clk 00:26:45]} {[%emt 00:00:14]}
24. h3 {[%clk 00:26:54]} {[%emt 00:02:20]} Bc8 {[%clk 00:26:58]} {[%emt
00:00:16]} 25. Qg6 {[%clk 00:26:41]} {[%emt 00:00:43]} Qf7 {[%clk 00:20:04]}
{[%emt 00:07:24]} 26. Qxf7+ {[%clk 00:19:09]} {[%emt 00:08:02]} Kxf7 {[%clk
00:20:32]} {[%emt 00:00:02]} 27. c5 {[%clk 00:16:35]} {[%emt 00:03:04]} dxc5
{[%clk 00:19:57]} {[%emt 00:01:06]} 28. c4 {[%clk 00:16:29]} {[%emt 00:00:37]}
Ne8 {[%clk 00:20:15]} {[%emt 00:00:10]} 29. g4 {[%clk 00:12:21]} {[%emt
00:04:38]} g5 {[%clk 00:18:44]} {[%emt 00:02:01]} 30. Kf2 {[%clk 00:11:27]}
{[%emt 00:01:24]} Nd6 {[%clk 00:18:46]} {[%emt 00:00:29]} 31. Ke3 {[%clk
00:10:20]} {[%emt 00:01:37]} Bd7 {[%clk 00:17:43]} {[%emt 00:01:34]} 32. Bc2
{[%clk 00:09:56]} {[%emt 00:00:54]} Nxc4+ {[%clk 00:17:47]} {[%emt 00:00:25]}
33. Kd3 {[%clk 00:10:16]} {[%emt 00:00:10]} Nd6 {[%clk 00:18:08]} {[%emt
00:00:09]} 34. Kc3 {[%clk 00:08:02]} {[%emt 00:02:43]} Kf6 {[%clk 00:17:35]}
{[%emt 00:01:03]} 35. Be3 {[%clk 00:07:40]} {[%emt 00:00:53]} Bc8 {[%clk
00:17:01]} {[%emt 00:01:03]} 36. Bd3 {[%clk 00:07:50]} {[%emt 00:00:20]} Bb7
{[%clk 00:17:16]} {[%emt 00:00:15]} 0-1

[Event "Vetern-SM 50+ 2025"]
[Site "Uppsala, Sweden"]
[Date "2025.07.05"]
[Round "8.4"]
[White "Bergfalk, Jonas"]
[Black "Eriksson, Kristian"]
[Result "1/2-1/2"]
[TimeControl "90 min for 40 move + 30 min with an increment of 30 sec starting move 1"]
[WhiteFideId "1703986"]
[BlackFideId "1705172"]
[WhiteElo "2030"]
[BlackElo "1998"]

1. c4 {[%clk 01:30:57]} {[%emt 00:00:01]} e5 {[%clk 01:30:36]} {[%emt
00:00:24]} 2. Nc3 {[%clk 01:31:21]} {[%emt 00:00:07]} Bb4 {[%clk 01:30:48]}
{[%emt 00:00:17]} 3. Nd5 {[%clk 01:29:45]} {[%emt 00:02:07]} a5 {[%clk
01:31:02]} {[%emt 00:00:16]} 4. g3 {[%clk 01:29:34]} {[%emt 00:00:41]} Nf6
{[%clk 01:30:22]} {[%emt 00:01:09]} 5. Bg2 {[%clk 01:29:11]} {[%emt 00:00:54]}
O-O {[%clk 01:29:17]} {[%emt 00:01:35]} 6. Nxb4 {[%clk 01:23:06]} {[%emt
00:06:36]} axb4 {[%clk 01:29:35]} {[%emt 00:00:11]} 7. d4 {[%clk 01:23:30]}
{[%emt 00:00:05]} e4 {[%clk 01:18:31]} {[%emt 00:11:34]} 8. f3 {[%clk
01:01:48]} {[%emt 00:22:13]} d5 {[%clk 01:15:22]} {[%emt 00:03:39]} 9. cxd5
{[%clk 01:01:26]} {[%emt 00:00:52]} Qxd5 {[%clk 01:14:56]} {[%emt 00:00:56]} 10.
fxe4 {[%clk 01:01:34]} {[%emt 00:00:22]} Nxe4 {[%clk 01:15:06]} {[%emt
00:00:19]} 11. Nf3 {[%clk 01:01:56]} {[%emt 00:00:08]} Rxa2 {[%clk 01:11:11]}
{[%emt 00:04:25]} 12. Rxa2 {[%clk 01:01:53]} {[%emt 00:00:34]} Qxa2 {[%clk
01:11:38]} {[%emt 00:00:03]} 13. O-O {[%clk 01:02:05]} {[%emt 00:00:18]} Nd6
{[%clk 01:03:06]} {[%emt 00:09:02]} 14. Ne5 {[%clk 01:00:34]} {[%emt 00:02:01]}
f6 {[%clk 00:51:06]} {[%emt 00:12:30]} 15. Nd3 {[%clk 00:57:44]} {[%emt
00:03:19]} Be6 {[%clk 00:42:14]} {[%emt 00:09:21]} 16. Nxb4 {[%clk 00:56:00]}
{[%emt 00:02:16]} Qc4 {[%clk 00:40:45]} {[%emt 00:01:57]} 17. Nc2 {[%clk
00:56:05]} {[%emt 00:00:26]} Rd8 {[%clk 00:34:44]} {[%emt 00:06:31]} 18. Na3
{[%clk 00:53:53]} {[%emt 00:02:43]} Qb4 {[%clk 00:32:43]} {[%emt 00:02:26]} 19.
Qd2 {[%clk 00:52:39]} {[%emt 00:01:49]} Qb6 {[%clk 00:31:14]} {[%emt 00:01:59]}
20. Qc3 {[%clk 00:52:38]} {[%emt 00:00:31]} Bf7 {[%clk 00:27:19]} {[%emt
00:04:24]} 21. Bf4 {[%clk 00:48:38]} {[%emt 00:04:31]} Nc6 {[%clk 00:26:14]}
{[%emt 00:01:35]} 22. e3 {[%clk 00:46:57]} {[%emt 00:02:11]} Nb4 {[%clk
00:22:04]} {[%emt 00:04:40]} 23. Qc5 {[%clk 00:45:34]} {[%emt 00:01:53]} Qxc5
{[%clk 00:16:20]} {[%emt 00:06:14]} 24. dxc5 {[%clk 00:45:55]} {[%emt
00:00:09]} Nc4 {[%clk 00:16:14]} {[%emt 00:00:36]} 25. Nxc4 {[%clk 00:45:38]}
{[%emt 00:00:48]} Bxc4 {[%clk 00:16:41]} {[%emt 00:00:03]} 26. Rc1 {[%clk
00:45:45]} {[%emt 00:00:22]} Ba6 {[%clk 00:12:15]} {[%emt 00:04:55]} 27. Bxc7
{[%clk 00:45:35]} {[%emt 00:00:40]} Rd2 {[%clk 00:12:26]} {[%emt 00:00:19]} 28.
Ba5 {[%clk 00:37:09]} {[%emt 00:08:56]} Rxb2 {[%clk 00:12:16]} {[%emt
00:00:41]} 29. Bxb4 {[%clk 00:37:32]} {[%emt 00:00:07]} Rxb4 {[%clk 00:12:26]}
{[%emt 00:00:20]} 1/2-1/2

[Event "Vetern-SM 50+ 2025"]
[Site "Uppsala, Sweden"]
[Date "2025.07.05"]
[Round "8.5"]
[White "Ljung, Rickard"]
[Black "Uneson, Marcus"]
[Result "1/2-1/2"]
[TimeControl "90 min for 40 move + 30 min with an increment of 30 sec starting move 1"]
[WhiteFideId "1740156"]
[BlackFideId "1730509"]
[WhiteElo "1972"]
[BlackElo "2118"]

1. d4 {[%clk 01:30:58]} {[%emt 00:00:01]} c6 {[%clk 01:29:06]} {[%emt
00:01:55]} 2. Nf3 {[%clk 01:30:30]} {[%emt 00:00:58]} Nf6 {[%clk 01:29:16]}
{[%emt 00:00:20]} 3. c3 {[%clk 01:30:14]} {[%emt 00:00:46]} d5 {[%clk
01:28:24]} {[%emt 00:01:22]} 4. Bf4 {[%clk 01:30:12]} {[%emt 00:00:31]} e6
{[%clk 01:26:56]} {[%emt 00:01:58]} 5. Nbd2 {[%clk 01:30:05]} {[%emt 00:00:37]}
Bd6 {[%clk 01:27:09]} {[%emt 00:00:17]} 6. Bg3 {[%clk 01:29:55]} {[%emt
00:00:40]} O-O {[%clk 01:27:03]} {[%emt 00:00:36]} 7. e3 {[%clk 01:30:19]}
{[%emt 00:00:07]} c5 {[%clk 01:21:13]} {[%emt 00:06:19]} 8. Bd3 {[%clk
01:29:04]} {[%emt 00:01:45]} b6 {[%clk 01:20:38]} {[%emt 00:01:05]} 9. e4
{[%clk 01:28:26]} {[%emt 00:01:09]} Bxg3 {[%clk 01:19:02]} {[%emt 00:02:05]} 10.
hxg3 {[%clk 01:28:47]} {[%emt 00:00:09]} dxe4 {[%clk 01:15:47]} {[%emt
00:03:45]} 11. Nxe4 {[%clk 01:28:58]} {[%emt 00:00:20]} Nbd7 {[%clk 01:16:02]}
{[%emt 00:00:14]} 12. Ne5 {[%clk 01:15:23]} {[%emt 00:14:05]} h6 {[%clk
01:13:50]} {[%emt 00:02:42]} 13. Nxd7 {[%clk 01:14:43]} {[%emt 00:01:10]} Bxd7
{[%clk 01:14:04]} {[%emt 00:00:16]} 14. dxc5 {[%clk 01:14:16]} {[%emt
00:00:58]} Bc6 {[%clk 01:12:45]} {[%emt 00:01:49]} 15. Qe2 {[%clk 01:09:53]}
{[%emt 00:04:53]} Nxe4 {[%clk 01:05:09]} {[%emt 00:08:06]} 16. Bxe4 {[%clk
01:10:04]} {[%emt 00:00:18]} Bxe4 {[%clk 01:05:37]} {[%emt 00:00:02]} 17. Qxe4
{[%clk 01:10:07]} {[%emt 00:00:28]} bxc5 {[%clk 01:05:53]} {[%emt 00:00:15]} 18.
O-O {[%clk 01:10:07]} {[%emt 00:00:29]} Qd2 {[%clk 00:56:14]} {[%emt 00:10:08]}
19. Rab1 {[%clk 01:09:56]} {[%emt 00:00:41]} Rfd8 {[%clk 00:55:23]} {[%emt
00:01:21]} 20. Qa4 {[%clk 01:08:39]} {[%emt 00:01:47]} Qd7 {[%clk 00:54:20]}
{[%emt 00:01:33]} 1/2-1/2

[Event "Vetern-SM 50+ 2025"]
[Site "Uppsala, Sweden"]
[Date "2025.07.05"]
[Round "8.6"]
[White "Brandberg, Joakim"]
[Black "Karlsson, Patrik"]
[Result "1/2-1/2"]
[TimeControl "90 min for 40 move + 30 min with an increment of 30 sec starting move 1"]
[WhiteFideId "1712276"]
[BlackFideId "1710834"]
[WhiteElo "2111"]
[BlackElo "1923"]

1. Nf3 {[%clk 01:30:55]} {[%emt 00:00:04]} d5 {[%clk 01:30:05]} {[%emt
00:00:56]} 2. d4 {[%clk 01:30:37]} {[%emt 00:00:48]} c6 {[%clk 01:30:10]}
{[%emt 00:00:25]} 3. c3 {[%clk 01:30:18]} {[%emt 00:00:49]} Bf5 {[%clk
01:27:35]} {[%emt 00:03:04]} 4. Bf4 {[%clk 01:29:15]} {[%emt 00:01:34]} h6
{[%clk 01:23:17]} {[%emt 00:04:47]} 5. Qb3 {[%clk 01:26:14]} {[%emt 00:03:31]}
Qb6 {[%clk 01:21:51]} {[%emt 00:01:57]} 6. Nbd2 {[%clk 01:25:22]} {[%emt
00:01:22]} Nd7 {[%clk 01:19:53]} {[%emt 00:02:27]} 7. h3 {[%clk 01:22:20]}
{[%emt 00:03:32]} Ngf6 {[%clk 01:18:35]} {[%emt 00:01:49]} 8. e3 {[%clk
01:21:41]} {[%emt 00:01:08]} e6 {[%clk 01:17:50]} {[%emt 00:01:16]} 9. Be2
{[%clk 01:19:56]} {[%emt 00:02:14]} Be7 {[%clk 01:13:47]} {[%emt 00:04:33]} 10.
O-O {[%clk 01:18:02]} {[%emt 00:02:25]} O-O {[%clk 01:07:14]} {[%emt 00:07:03]}
11. Rfc1 {[%clk 01:14:10]} {[%emt 00:04:20]} Rfc8 {[%clk 01:00:03]} {[%emt
00:07:43]} 12. c4 {[%clk 01:07:22]} {[%emt 00:07:18]} Qxb3 {[%clk 00:57:06]}
{[%emt 00:03:27]} 13. Nxb3 {[%clk 01:06:20]} {[%emt 00:01:32]} a5 {[%clk
00:53:30]} {[%emt 00:04:06]} 14. c5 {[%clk 01:02:43]} {[%emt 00:04:07]} Bf8
{[%clk 00:47:03]} {[%emt 00:06:56]} 15. Nbd2 {[%clk 01:00:54]} {[%emt
00:02:19]} g5 {[%clk 00:46:45]} {[%emt 00:00:48]} 16. Bh2 {[%clk 00:58:33]}
{[%emt 00:02:51]} Bg7 {[%clk 00:43:10]} {[%emt 00:04:05]} 17. Ne5 {[%clk
00:55:08]} {[%emt 00:03:56]} Nxe5 {[%clk 00:43:04]} {[%emt 00:00:36]} 18. Bxe5
{[%clk 00:55:26]} {[%emt 00:00:12]} Nd7 {[%clk 00:43:17]} {[%emt 00:00:16]} 19.
Bxg7 {[%clk 00:54:02]} {[%emt 00:01:55]} Kxg7 {[%clk 00:43:41]} {[%emt
00:00:06]} 20. b3 {[%clk 00:52:57]} {[%emt 00:01:34]} Re8 {[%clk 00:40:39]}
{[%emt 00:03:33]} 21. a3 {[%clk 00:48:53]} {[%emt 00:04:33]} e5 {[%clk
00:36:43]} {[%emt 00:04:26]} 22. Bf1 {[%clk 00:45:55]} {[%emt 00:03:28]} exd4
{[%clk 00:35:57]} {[%emt 00:01:17]} 23. exd4 {[%clk 00:46:15]} {[%emt
00:00:10]} Nf8 {[%clk 00:36:01]} {[%emt 00:00:26]} 24. b4 {[%clk 00:40:52]}
{[%emt 00:05:53]} Ne6 {[%clk 00:34:12]} {[%emt 00:02:18]} 25. Nf3 {[%clk
00:33:00]} {[%emt 00:08:22]} Be4 {[%clk 00:33:50]} {[%emt 00:00:53]} 26. Nd2
{[%clk 00:25:53]} {[%emt 00:07:36]} Nxd4 {[%clk 00:33:21]} {[%emt 00:01:00]} 27.
Nxe4 {[%clk 00:26:16]} {[%emt 00:00:07]} Rxe4 {[%clk 00:33:10]} {[%emt
00:00:41]} 28. Rab1 {[%clk 00:26:23]} {[%emt 00:00:23]} axb4 {[%clk 00:27:43]}
{[%emt 00:05:57]} 29. Rxb4 {[%clk 00:25:02]} {[%emt 00:01:50]} Rxa3 {[%clk
00:27:34]} {[%emt 00:00:39]} 30. Rxb7 {[%clk 00:23:50]} {[%emt 00:01:43]} Ne2+
{[%clk 00:21:13]} {[%emt 00:06:51]} 31. Bxe2 {[%clk 00:24:07]} {[%emt
00:00:12]} Rxe2 {[%clk 00:21:39]} {[%emt 00:00:05]} 32. Rc7 {[%clk 00:23:36]}
{[%emt 00:01:01]} Raa2 {[%clk 00:21:29]} {[%emt 00:00:40]} 33. Rf1 {[%clk
00:23:33]} {[%emt 00:00:33]} Re6 {[%clk 00:20:18]} {[%emt 00:01:40]} 34. Rc1
{[%clk 00:22:35]} {[%emt 00:01:28]} Ree2 {[%clk 00:15:19]} {[%emt 00:05:30]} 35.
Rf1 {[%clk 00:22:57]} {[%emt 00:00:07]} Re6 {[%clk 00:12:51]} {[%emt 00:02:58]}
36. Rc1 {[%clk 00:23:23]} {[%emt 00:00:05]} Ra4 {[%clk 00:12:24]} {[%emt
00:00:57]} 37. Rc3 {[%clk 00:22:22]} {[%emt 00:01:31]} Kg6 {[%clk 00:10:27]}
{[%emt 00:02:27]} 38. Rf3 {[%clk 00:19:06]} {[%emt 00:03:45]} f5 {[%clk
00:06:26]} {[%emt 00:04:32]} 39. Rb3 {[%clk 00:13:38]} {[%emt 00:05:57]} Rc4
{[%clk 00:05:47]} {[%emt 00:01:09]} 40. g3 {[%clk 00:13:19]} {[%emt 00:00:49]}
Rxc5 {[%clk 00:04:21]} {[%emt 00:01:56]} 41. Rbb7 {[%clk 00:13:22]} {[%emt
00:00:28]} f4 {[%clk 00:03:20]} {[%emt 00:01:30]} 42. gxf4 {[%clk 00:00:44]}
{[%emt 00:13:09]} gxf4 {[%clk 00:03:04]} {[%emt 00:00:46]} 43. Kg2 {[%clk
00:30:12]} {[%emt 00:01:02]} Kf5 {[%clk 00:29:13]} {[%emt 00:04:21]} 44. Rf7+
{[%clk 00:26:53]} {[%emt 00:03:49]} Ke4 {[%clk 00:16:44]} {[%emt 00:12:58]} 45.
f3+ {[%clk 00:26:35]} {[%emt 00:00:48]} Ke5 {[%clk 00:15:15]} {[%emt 00:01:58]}
46. Rb2 {[%clk 00:21:50]} {[%emt 00:05:17]} Rc3 {[%clk 00:14:22]} {[%emt
00:01:23]} 47. Kf2 {[%clk 00:21:50]} {[%emt 00:00:30]} d4 {[%clk 00:14:20]}
{[%emt 00:00:32]} 48. Re2+ {[%clk 00:19:33]} {[%emt 00:02:47]} Re3 {[%clk
00:14:17]} {[%emt 00:00:32]} 49. Rc2 {[%clk 00:19:41]} {[%emt 00:00:23]} d3
{[%clk 00:08:13]} {[%emt 00:06:33]} 50. Rc4 {[%clk 00:14:53]} {[%emt 00:05:19]}
d2 {[%clk 00:06:33]} {[%emt 00:02:10]} 51. Rd7 {[%clk 00:12:05]} {[%emt
00:03:18]} Rd6 {[%clk 00:06:26]} {[%emt 00:00:37]} 52. Rxd6 {[%clk 00:12:23]}
{[%emt 00:00:12]} Kxd6 {[%clk 00:06:10]} {[%emt 00:00:46]} 53. Rd4+ {[%clk
00:12:48]} {[%emt 00:00:05]} Ke5 {[%clk 00:05:37]} {[%emt 00:01:02]} 54. Rxd2
{[%clk 00:13:12]} {[%emt 00:00:07]} c5 {[%clk 00:05:20]} {[%emt 00:00:48]} 55.
Rd8 {[%clk 00:13:31]} {[%emt 00:00:11]} Rb3 {[%clk 00:05:02]} {[%emt 00:00:47]}
56. h4 {[%clk 00:10:34]} {[%emt 00:03:26]} c4 {[%clk 00:04:29]} {[%emt
00:01:04]} 57. Ke2 {[%clk 00:06:50]} {[%emt 00:04:14]} Rb2+ {[%clk 00:04:04]}
{[%emt 00:00:55]} 58. Kd1 {[%clk 00:06:37]} {[%emt 00:00:43]} Rf2 {[%clk
00:03:36]} {[%emt 00:00:57]} 59. Rh8 {[%clk 00:06:02]} {[%emt 00:01:05]} Rxf3
{[%clk 00:02:54]} {[%emt 00:01:12]} 60. Rxh6 {[%clk 00:06:12]} {[%emt
00:00:20]} Rd3+ {[%clk 00:02:09]} {[%emt 00:01:15]} 61. Ke2 {[%clk 00:06:20]}
{[%emt 00:00:22]} f3+ {[%clk 00:02:20]} {[%emt 00:00:20]} 62. Kf2 {[%clk
00:06:36]} {[%emt 00:00:14]} Kd4 {[%clk 00:01:17]} {[%emt 00:01:33]} 63. Rc6
{[%clk 00:05:27]} {[%emt 00:01:38]} c3 {[%clk 00:01:15]} {[%emt 00:00:33]} 64.
h5 {[%clk 00:05:23]} {[%emt 00:00:33]} Rd2+ {[%clk 00:01:00]} {[%emt 00:00:45]}
65. Kxf3 {[%clk 00:05:28]} {[%emt 00:00:25]} Rh2 {[%clk 00:01:01]} {[%emt
00:00:29]} 66. h6 {[%clk 00:05:50]} {[%emt 00:00:08]} Kd3 {[%clk 00:01:03]}
{[%emt 00:00:28]} 67. Rd6+ {[%clk 00:06:07]} {[%emt 00:00:13]} Kc4 {[%clk
00:00:52]} {[%emt 00:00:42]} 68. Rc6+ {[%clk 00:06:03]} {[%emt 00:00:34]} Kb3
{[%clk 00:00:58]} {[%emt 00:00:24]} 69. Rb6+ {[%clk 00:06:20]} {[%emt
00:00:13]} Kc2 {[%clk 00:00:55]} {[%emt 00:00:33]} 70. Ke3 {[%clk 00:05:45]}
{[%emt 00:01:04]} Rh3+ {[%clk 00:01:05]} {[%emt 00:00:21]} 71. Ke4 {[%clk
00:05:41]} {[%emt 00:00:34]} Kc1 {[%clk 00:01:06]} {[%emt 00:00:28]} 72. Rc6
{[%clk 00:04:27]} {[%emt 00:01:46]} c2 {[%clk 00:01:12]} {[%emt 00:00:24]} 73.
Kf4 {[%clk 00:02:41]} {[%emt 00:02:14]} Kb2 {[%clk 00:01:26]} {[%emt 00:00:17]}
74. Rxc2+ {[%clk 00:02:43]} {[%emt 00:00:28]} Kxc2 {[%clk 00:01:46]} {[%emt
00:00:10]} 75. Kg5 {[%clk 00:03:11]} {[%emt 00:00:02]} Kd3 {[%clk 00:01:57]}
{[%emt 00:00:18]} 76. Kg6 {[%clk 00:03:36]} {[%emt 00:00:05]} Ke4 {[%clk
00:01:54]} {[%emt 00:00:34]} 77. h7 {[%clk 00:03:50]} {[%emt 00:00:16]} Ke5
{[%clk 00:01:52]} {[%emt 00:00:32]} 78. Kg7 {[%clk 00:04:15]} {[%emt 00:00:05]}
Rg3+ {[%clk 00:01:49]} {[%emt 00:00:33]} 79. Kf7 {[%clk 00:04:27]} {[%emt
00:00:18]} Rf3+ {[%clk 00:01:21]} {[%emt 00:00:57]} 80. Kg7 {[%clk 00:04:40]}
{[%emt 00:00:17]} Rg3+ {[%clk 00:01:33]} {[%emt 00:00:18]} 81. Kf7 {[%clk
00:05:05]} {[%emt 00:00:05]} Rh3 {[%clk 00:01:26]} {[%emt 00:00:37]} 82. Kg7
{[%clk 00:05:31]} {[%emt 00:00:05]} Rxh7+ {[%clk 00:01:50]} {[%emt 00:00:06]}
1/2-1/2

[Event "Vetern-SM 50+ 2025"]
[Site "Uppsala, Sweden"]
[Date "2025.07.05"]
[Round "8.7"]
[White "Lundberg, Daniel"]
[Black "Persson, Lars"]
[Result "0-1"]
[TimeControl "90 min for 40 move + 30 min with an increment of 30 sec starting move 1"]
[WhiteFideId "1759264"]
[BlackFideId "1703579"]
[WhiteElo "1838"]
[BlackElo "2041"]

1. Nf3 {[%clk 01:30:55]} {[%emt 00:00:04]} d6 {[%clk 01:30:54]} {[%emt
00:00:07]} 2. d4 {[%clk 01:31:04]} {[%emt 00:00:20]} f5 {[%clk 01:31:23]}
{[%emt 00:00:01]} 3. g3 {[%clk 01:29:38]} {[%emt 00:01:57]} Nf6 {[%clk
01:31:45]} {[%emt 00:00:08]} 4. Bg2 {[%clk 01:29:40]} {[%emt 00:00:27]} g6
{[%clk 01:32:07]} {[%emt 00:00:08]} 5. b3 {[%clk 01:29:06]} {[%emt 00:01:04]}
Bg7 {[%clk 01:32:24]} {[%emt 00:00:13]} 6. Bb2 {[%clk 01:29:26]} {[%emt
00:00:10]} O-O {[%clk 01:32:41]} {[%emt 00:00:14]} 7. Nbd2 {[%clk 01:29:04]}
{[%emt 00:00:51]} c6 {[%clk 01:32:36]} {[%emt 00:00:35]} 8. O-O {[%clk
01:28:12]} {[%emt 00:01:22]} a5 {[%clk 01:32:41]} {[%emt 00:00:25]} 9. c4
{[%clk 01:25:38]} {[%emt 00:03:03]} a4 {[%clk 01:24:58]} {[%emt 00:08:15]} 10.
Re1 {[%clk 01:18:45]} {[%emt 00:07:22]} a3 {[%clk 01:24:49]} {[%emt 00:00:39]}
11. Bc3 {[%clk 01:18:10]} {[%emt 00:01:05]} Ne4 {[%clk 01:24:55]} {[%emt
00:00:25]} 12. Rc1 {[%clk 01:15:01]} {[%emt 00:03:38]} Nxc3 {[%clk 01:24:19]}
{[%emt 00:01:06]} 13. Rxc3 {[%clk 01:15:20]} {[%emt 00:00:11]} c5 {[%clk
01:22:00]} {[%emt 00:02:49]} 14. Rd3 {[%clk 01:12:20]} {[%emt 00:03:30]} Nc6
{[%clk 01:17:56]} {[%emt 00:04:33]} 15. dxc5 {[%clk 01:01:59]} {[%emt
00:10:52]} Nb4 {[%clk 01:18:15]} {[%emt 00:00:11]} 16. cxd6 {[%clk 01:02:06]}
{[%emt 00:00:23]} exd6 {[%clk 01:11:03]} {[%emt 00:07:42]} 17. Qb1 {[%clk
00:56:52]} {[%emt 00:05:44]} Nxd3 {[%emt 00:08:34]} 18. Qxd3 {[%clk 00:55:56]}
{[%emt 00:01:24]} Qf6 {[%clk 01:00:19]} {[%emt 00:03:12]} 19. Rb1 {[%clk
00:40:51]} {[%emt 00:15:35]} Ra6 {[%clk 00:48:43]} {[%emt 00:12:06]} 20. e3
{[%clk 00:38:11]} {[%emt 00:03:10]} Qc3 {[%clk 00:36:33]} {[%emt 00:12:40]} 21.
Qxc3 {[%clk 00:36:33]} {[%emt 00:02:09]} Bxc3 {[%clk 00:36:59]} {[%emt
00:00:03]} 22. Rd1 {[%clk 00:36:34]} {[%emt 00:00:29]} Rb6 {[%clk 00:29:22]}
{[%emt 00:08:06]} 23. Nb1 {[%clk 00:32:32]} {[%emt 00:04:32]} Bb2 {[%clk
00:27:40]} {[%emt 00:02:13]} 24. Nd4 {[%clk 00:32:33]} {[%emt 00:00:28]} Bxd4
{[%clk 00:22:27]} {[%emt 00:05:43]} 25. Bd5+ {[%clk 00:32:13]} {[%emt
00:00:50]} Kg7 {[%clk 00:22:29]} {[%emt 00:00:29]} 26. exd4 {[%clk 00:32:34]}
{[%emt 00:00:10]} Ra6 {[%clk 00:19:16]} {[%emt 00:03:43]} 27. Re1 {[%clk
00:32:38]} {[%emt 00:00:25]} Kf6 {[%clk 00:19:30]} {[%emt 00:00:16]} 28. Nc3
{[%clk 00:30:02]} {[%emt 00:03:06]} Rd8 {[%clk 00:12:16]} {[%emt 00:07:44]} 29.
Kf1 {[%clk 00:29:05]} {[%emt 00:01:27]} b6 {[%clk 00:11:56]} {[%emt 00:00:51]}
30. Nb5 {[%clk 00:28:31]} {[%emt 00:01:03]} Ra5 {[%clk 00:08:30]} {[%emt
00:03:56]} 31. h4 {[%clk 00:24:49]} {[%emt 00:04:13]} Ba6 {[%clk 00:05:28]}
{[%emt 00:03:32]} 32. Nc3 {[%clk 00:16:19]} {[%emt 00:08:59]} Kg7 {[%clk
00:05:31]} {[%emt 00:00:27]} 33. Kg1 {[%clk 00:15:21]} {[%emt 00:01:28]} Bc8
{[%clk 00:04:35]} {[%emt 00:01:25]} 34. Nb5 {[%clk 00:15:23]} {[%emt 00:00:29]}
Kh6 {[%clk 00:02:31]} {[%emt 00:02:34]} 35. f4 {[%clk 00:11:57]} {[%emt
00:03:54]} Ba6 {[%clk 00:02:13]} {[%emt 00:00:51]} 36. Nc3 {[%clk 00:12:02]}
{[%emt 00:00:25]} Bc8 {[%clk 00:02:33]} {[%emt 00:00:10]} 37. Re7 {[%clk
00:09:49]} {[%emt 00:02:41]} Bd7 {[%clk 00:01:53]} {[%emt 00:01:11]} 38. Bg8
{[%clk 00:02:26]} {[%emt 00:07:53]} Rxg8 {[%clk 00:01:30]} {[%emt 00:00:53]} 39.
Rxd7 {[%clk 00:02:47]} {[%emt 00:00:08]} Re8 {[%clk 00:01:33]} {[%emt
00:00:28]} 40. Kf2 {[%clk 00:03:07]} {[%emt 00:00:10]} Re6 {[%clk 00:01:00]}
{[%emt 00:01:03]} 41. Nb5 {[%clk 00:30:13]} {[%emt 00:03:25]} Kh5 {[%clk
00:16:49]} {[%emt 00:14:40]} 42. Nxd6 {[%clk 00:28:07]} {[%emt 00:02:35]} h6
{[%clk 00:13:48]} {[%emt 00:03:31]} 43. Nf7 {[%clk 00:26:55]} {[%emt 00:01:42]}
b5 {[%clk 00:12:20]} {[%emt 00:01:59]} 44. c5 {[%clk 00:27:01]} {[%emt
00:00:24]} Re4 {[%clk 00:09:34]} {[%emt 00:03:16]} 45. Ne5 {[%clk 00:26:57]}
{[%emt 00:00:34]} Ra8 {[%clk 00:09:37]} {[%emt 00:00:27]} 46. c6 {[%clk
00:26:46]} {[%emt 00:00:40]} Rc8 {[%clk 00:09:23]} {[%emt 00:00:44]} 47. c7
{[%clk 00:26:58]} {[%emt 00:00:18]} b4 {[%clk 00:09:20]} {[%emt 00:00:34]} 48.
Nc4 {[%clk 00:24:58]} {[%emt 00:02:30]} Kg4 {[%clk 00:07:58]} {[%emt 00:01:52]}
49. Nb6 {[%clk 00:22:14]} {[%emt 00:03:14]} Rce8 {[%clk 00:07:23]} {[%emt
00:01:05]} 0-1